[Event "Early-Titled-Tuesday-Blitz-August-29-2023"]
[Site "Chess.com"]
[Date "2023.08.29"]
[Round "1"]
[White "SmirnovAlexandrA"]
[Black "Maili15"]
[Result "1/2-1/2"]
[WhiteElo "2641"]
[BlackElo "2335"]
[TimeControl "180+1"]
[EndTime "8:07:58 PDT"]
[Termination "Game drawn by agreement"]

1. e4 {[%clk 0:01:47.7]} 1... c6 {[%clk 0:02:59.8]} 2. d4 {[%clk 0:01:46.9]}
2... d5 {[%clk 0:02:59.9]} 3. e5 {[%clk 0:01:46.4]} 3... Bf5 {[%clk 0:02:57.9]}
4. Nf3 {[%clk 0:01:45.4]} 4... e6 {[%clk 0:02:55.5]} 5. Be2 {[%clk 0:01:45.7]}
5... c5 {[%clk 0:02:53]} 6. O-O {[%clk 0:01:45.9]} 6... Nc6 {[%clk 0:02:52.8]}
7. Be3 {[%clk 0:01:45.1]} 7... cxd4 {[%clk 0:02:51.8]} 8. Nxd4 {[%clk
0:01:42.3]} 8... Nxd4 {[%clk 0:02:50.8]} 9. Qxd4 {[%clk 0:01:43.2]} 9... Ne7
{[%clk 0:02:50.4]} 10. Qa4+ {[%clk 0:01:40.1]} 10... Nc6 {[%clk 0:02:48.5]} 11.
Rd1 {[%clk 0:01:40.7]} 11... Qc7 {[%clk 0:02:37.6]} 12. c4 {[%clk 0:01:37.1]}
12... dxc4 {[%clk 0:02:33.8]} 13. Na3 {[%clk 0:01:36.3]} 13... Be7 {[%clk
0:02:28.8]} 14. Nxc4 {[%clk 0:01:32.1]} 14... O-O {[%clk 0:02:28.4]} 15. f4
{[%clk 0:01:31.6]} 15... Rfd8 {[%clk 0:02:12]} 16. Bf3 {[%clk 0:01:21.3]} 16...
Nb4 {[%clk 0:02:06.2]} 17. Rxd8+ {[%clk 0:01:06.1]} 17... Rxd8 {[%clk
0:02:03.1]} 18. Nd6 {[%clk 0:01:07]} 18... Bxd6 {[%clk 0:01:52.7]} 19. exd6
{[%clk 0:01:07.9]} 19... Qxd6 {[%clk 0:01:52]} 20. Rd1 {[%clk 0:01:06.9]} 20...
Nd3 {[%clk 0:01:46]} 21. Qxa7 {[%clk 0:01:02.3]} 21... b5 {[%clk 0:01:18.9]} 22.
a3 {[%clk 0:01:00.5]} 22... h6 {[%clk 0:01:16.1]} 23. Qb6 {[%clk 0:00:58.5]}
23... Qxb6 {[%clk 0:01:12.9]} 24. Bxb6 {[%clk 0:00:59.4]} 24... Rc8 {[%clk
0:01:06.3]} 25. Be2 {[%clk 0:00:43.8]} 25... Nxb2 {[%clk 0:01:02.7]} 26. Rd8+
{[%clk 0:00:38.5]} 26... Rxd8 {[%clk 0:01:02]} 27. Bxd8 {[%clk 0:00:39.4]} 27...
Bd3 {[%clk 0:00:55]} 28. Bf3 {[%clk 0:00:39.6]} 28... Nc4 {[%clk 0:00:52.4]} 29.
Be7 {[%clk 0:00:38.6]} 29... f6 {[%clk 0:00:48.7]} 30. Bc6 {[%clk 0:00:36.6]}
30... Kf7 {[%clk 0:00:48.2]} 31. Bb4 {[%clk 0:00:36.7]} 31... Nb6 {[%clk
0:00:45]} 32. Kf2 {[%clk 0:00:35.5]} 32... e5 {[%clk 0:00:40.9]} 33. fxe5 {[%clk
0:00:35.1]} 33... fxe5 {[%clk 0:00:41.3]} 34. Ke3 {[%clk 0:00:35.8]} 34... Bf1
{[%clk 0:00:34.2]} 35. g3 {[%clk 0:00:34.2]} 35... Ke6 {[%clk 0:00:33.6]} 36. h4
{[%clk 0:00:32.5]} 36... Bc4 {[%clk 0:00:31.6]} 37. Bf8 {[%clk 0:00:30.9]} 37...
Kf7 {[%clk 0:00:24.1]} 38. Bb4 {[%clk 0:00:30.8]} 38... Kf6 {[%clk 0:00:21.1]}
39. Bc5 {[%clk 0:00:30.4]} 39... Nc8 {[%clk 0:00:18.9]} 40. Ke4 {[%clk
0:00:22.3]} 40... Bf1 {[%clk 0:00:18.5]} 41. Bd7 {[%clk 0:00:21]} 41... Ne7
{[%clk 0:00:17.9]} 42. Ke3 {[%clk 0:00:19.2]} 42... Nf5+ {[%clk 0:00:16.2]} 43.
Bxf5 {[%clk 0:00:16.8]} 43... Kxf5 {[%clk 0:00:17.1]} 44. Bf8 {[%clk 0:00:15.9]}
44... Kg6 {[%clk 0:00:13.7]} 45. Kf2 {[%clk 0:00:15.4]} 45... Bc4 {[%clk
0:00:13]} 46. Ke3 {[%clk 0:00:15.8]} 46... Kf7 {[%clk 0:00:12.3]} 47. Bd6 {[%clk
0:00:15.8]} 47... Kf6 {[%clk 0:00:12.8]} 48. Bc7 {[%clk 0:00:14.8]} 48... g5
{[%clk 0:00:12.5]} 49. Bd8+ {[%clk 0:00:14]} 49... Kf5 {[%clk 0:00:12.3]} 50.
hxg5 {[%clk 0:00:14.9]} 50... hxg5 {[%clk 0:00:12.3]} 51. Bc7 {[%clk 0:00:14.7]}
51... e4 {[%clk 0:00:11.4]} 52. Bd6 {[%clk 0:00:14.2]} 1/2-1/2

[Event "Early-Titled-Tuesday-Blitz-August-29-2023"]
[Site "Chess.com"]
[Date "2023.08.29"]
[Round "1"]
[White "Zq1"]
[Black "stratacticos"]
[Result "1-0"]
[WhiteElo "2535"]
[BlackElo "1828"]
[TimeControl "180+1"]
[EndTime "8:07:59 PDT"]
[Termination "Zq1 won on time"]

1. d4 {[%clk 0:02:59.8]} 1... Nf6 {[%clk 0:02:59]} 2. c4 {[%clk 0:02:59.7]} 2...
c5 {[%clk 0:02:58.3]} 3. Nf3 {[%clk 0:02:58.4]} 3... g6 {[%clk 0:02:57.5]} 4.
Nc3 {[%clk 0:02:56.7]} 4... Bg7 {[%clk 0:02:57]} 5. d5 {[%clk 0:02:56.8]} 5...
O-O {[%clk 0:02:55.9]} 6. e4 {[%clk 0:02:56.1]} 6... d6 {[%clk 0:02:55.6]} 7. h3
{[%clk 0:02:52.3]} 7... Na6 {[%clk 0:02:55]} 8. Bd3 {[%clk 0:02:49.9]} 8... Bd7
{[%clk 0:02:54.6]} 9. O-O {[%clk 0:02:48.1]} 9... Nc7 {[%clk 0:02:54.4]} 10. Bf4
{[%clk 0:02:44.7]} 10... a6 {[%clk 0:02:47.7]} 11. a4 {[%clk 0:02:43.5]} 11...
Nh5 {[%clk 0:02:40.9]} 12. Bh2 {[%clk 0:02:40.2]} 12... Rb8 {[%clk 0:02:36.6]}
13. e5 {[%clk 0:02:37]} 13... dxe5 {[%clk 0:02:33.7]} 14. Nxe5 {[%clk
0:02:35.1]} 14... Be8 {[%clk 0:02:27.6]} 15. a5 {[%clk 0:02:29.2]} 15... b6
{[%clk 0:02:18.9]} 16. axb6 {[%clk 0:02:27.8]} 16... Rxb6 {[%clk 0:02:18.6]} 17.
Na4 {[%clk 0:02:17.4]} 17... Bxa4 {[%clk 0:02:10.4]} 18. Qxa4 {[%clk 0:02:12.2]}
18... Rxb2 {[%clk 0:02:08]} 19. Rfe1 {[%clk 0:02:00.2]} 19... e6 {[%clk
0:01:58]} 20. Nc6 {[%clk 0:01:44.2]} 20... Qf6 {[%clk 0:01:57]} 21. Rf1 {[%clk
0:01:36]} 21... Nf4 {[%clk 0:01:53.6]} 22. Rad1 {[%clk 0:01:15.3]} 22... exd5
{[%clk 0:01:49.3]} 23. Qa5 {[%clk 0:01:01.6]} 23... dxc4 {[%clk 0:01:40.7]} 24.
Bxc4 {[%clk 0:00:42.8]} 24... Ncd5 {[%clk 0:01:25.1]} 25. Rxd5 {[%clk
0:00:33.6]} 25... Nxd5 {[%clk 0:01:20.5]} 26. Bxd5 {[%clk 0:00:33.1]} 26... c4
{[%clk 0:01:14.7]} 27. Bf3 {[%clk 0:00:21.6]} 27... c3 {[%clk 0:01:12]} 28. Be5
{[%clk 0:00:20.4]} 28... Qf5 {[%clk 0:01:03]} 29. Qxc3 {[%clk 0:00:14.7]} 29...
Bxe5 {[%clk 0:00:56.6]} 30. Nxe5 {[%clk 0:00:13.9]} 30... Rb5 {[%clk 0:00:52.4]}
31. Ng4 {[%clk 0:00:13.4]} 31... Qg5 {[%clk 0:00:46.3]} 32. Nf6+ {[%clk
0:00:13]} 32... Kg7 {[%clk 0:00:42.3]} 33. Nd7+ {[%clk 0:00:12.7]} 33... f6
{[%clk 0:00:37.9]} 34. Nxf8 {[%clk 0:00:11.8]} 34... Kxf8 {[%clk 0:00:37.4]} 35.
Rd1 {[%clk 0:00:11.6]} 35... Kg7 {[%clk 0:00:36.7]} 36. Qc7+ {[%clk 0:00:10.3]}
36... Kh6 {[%clk 0:00:36.3]} 37. Rd7 {[%clk 0:00:10.1]} 37... Rb1+ {[%clk
0:00:30.3]} 38. Kh2 {[%clk 0:00:10.1]} 38... Qe5+ {[%clk 0:00:29.1]} 39. Qxe5
{[%clk 0:00:10.2]} 39... fxe5 {[%clk 0:00:29.2]} 40. Ra7 {[%clk 0:00:10.3]}
40... Ra1 {[%clk 0:00:28]} 41. h4 {[%clk 0:00:10.3]} 41... a5 {[%clk 0:00:26.5]}
42. Kg3 {[%clk 0:00:10.8]} 42... a4 {[%clk 0:00:26.5]} 43. Bd5 {[%clk
0:00:10.9]} 43... g5 {[%clk 0:00:24.2]} 44. Ra6+ {[%clk 0:00:09.5]} 44... Kg7
{[%clk 0:00:20.1]} 45. hxg5 {[%clk 0:00:09.7]} 45... a3 {[%clk 0:00:18.5]} 46.
Be4 {[%clk 0:00:09.9]} 46... Re1 {[%clk 0:00:15.7]} 47. f3 {[%clk 0:00:08.7]}
47... Re3 {[%clk 0:00:13.7]} 48. Ra7+ {[%clk 0:00:08]} 48... Kf8 {[%clk
0:00:13.2]} 49. Bxh7 {[%clk 0:00:07.9]} 49... e4 {[%clk 0:00:08.5]} 50. Bxe4
{[%clk 0:00:07.8]} 1-0

[Event "Early-Titled-Tuesday-Blitz-August-29-2023"]
[Site "Chess.com"]
[Date "2023.08.29"]
[Round "1"]
[White "Chessdude1987"]
[Black "starworld123"]
[Result "0-1"]
[WhiteElo "2423"]
[BlackElo "2795"]
[TimeControl "180+1"]
[EndTime "8:08:04 PDT"]
[Termination "starworld123 won on time"]

1. e4 {[%clk 0:02:59.9]} 1... c5 {[%clk 0:02:58.6]} 2. Nf3 {[%clk 0:02:58.9]}
2... e6 {[%clk 0:02:56.6]} 3. g3 {[%clk 0:02:58.3]} 3... Nc6 {[%clk 0:02:54.6]}
4. Bg2 {[%clk 0:02:56.9]} 4... Nf6 {[%clk 0:02:55.3]} 5. d3 {[%clk 0:02:55.9]}
5... Be7 {[%clk 0:02:40.4]} 6. Nbd2 {[%clk 0:02:47.5]} 6... d5 {[%clk
0:02:33.3]} 7. Qe2 {[%clk 0:02:43]} 7... b6 {[%clk 0:02:28.6]} 8. e5 {[%clk
0:02:35.2]} 8... Nd7 {[%clk 0:02:28.7]} 9. O-O {[%clk 0:02:34.1]} 9... Bb7
{[%clk 0:02:28.6]} 10. Re1 {[%clk 0:02:32.6]} 10... g5 {[%clk 0:02:24.7]} 11. h3
{[%clk 0:02:09.2]} 11... Qc7 {[%clk 0:02:17.7]} 12. c4 {[%clk 0:02:08.2]} 12...
d4 {[%clk 0:02:01.6]} 13. b4 {[%clk 0:01:53.4]} 13... Nxb4 {[%clk 0:01:59.4]}
14. Ne4 {[%clk 0:01:51.4]} 14... Nxe5 {[%clk 0:01:30.8]} 15. Nxe5 {[%clk
0:01:34.9]} 15... Qxe5 {[%clk 0:01:31.7]} 16. f4 {[%clk 0:01:33]} 16... Qc7
{[%clk 0:01:18.4]} 17. fxg5 {[%clk 0:01:27.5]} 17... O-O-O {[%clk 0:01:11.4]}
18. a4 {[%clk 0:01:08.7]} 18... a5 {[%clk 0:01:10]} 19. Bf4 {[%clk 0:00:49.8]}
19... e5 {[%clk 0:01:09.9]} 20. Bc1 {[%clk 0:00:48.2]} 20... Rdg8 {[%clk
0:01:00.1]} 21. Rf1 {[%clk 0:00:21.8]} 21... Rg7 {[%clk 0:00:59.4]} 22. Rf5
{[%clk 0:00:17.7]} 22... Rhg8 {[%clk 0:00:48.4]} 23. h4 {[%clk 0:00:15.6]} 23...
Nc6 {[%clk 0:00:37.1]} 24. Bd2 {[%clk 0:00:13.5]} 24... Kb8 {[%clk 0:00:37]} 25.
Raf1 {[%clk 0:00:12.9]} 25... Bd8 {[%clk 0:00:31.4]} 26. Nf6 {[%clk 0:00:12.1]}
26... Bxf6 {[%clk 0:00:31.9]} 27. Rxf6 {[%clk 0:00:11.4]} 27... Re8 {[%clk
0:00:29.3]} 28. h5 {[%clk 0:00:09.3]} 28... Re7 {[%clk 0:00:25.1]} 29. Be4
{[%clk 0:00:07.9]} 29... Nd8 {[%clk 0:00:23.2]} 30. h6 {[%clk 0:00:07]} 30...
Rg6 {[%clk 0:00:20.8]} 31. Rxg6 {[%clk 0:00:04.4]} 31... fxg6 {[%clk 0:00:21.7]}
32. Rf6 {[%clk 0:00:01.8]} 32... Bxe4 {[%clk 0:00:12.6]} 33. Qxe4 {[%clk
0:00:01.4]} 33... Qb7 {[%clk 0:00:13.2]} 34. Qf3 {[%clk 0:00:01.6]} 34... Qxf3
{[%clk 0:00:12.8]} 35. Rxf3 {[%clk 0:00:02.3]} 35... Rf7 {[%clk 0:00:13.2]} 36.
Rxf7 {[%clk 0:00:02]} 36... Nxf7 {[%clk 0:00:14.1]} 37. Kg2 {[%clk 0:00:02.3]}
37... Kc7 {[%clk 0:00:14.3]} 38. Kf3 {[%clk 0:00:02.1]} 38... Kd6 {[%clk
0:00:14.8]} 39. g4 {[%clk 0:00:02.9]} 39... Ke6 {[%clk 0:00:14.9]} 40. Bc1
{[%clk 0:00:00.8]} 40... Nd6 {[%clk 0:00:15]} 41. Ke2 {[%clk 0:00:01.6]} 41...
e4 {[%clk 0:00:14.4]} 42. Bf4 {[%clk 0:00:01.3]} 42... exd3+ {[%clk 0:00:09.6]}
43. Kxd3 {[%clk 0:00:02.1]} 43... Nf7 {[%clk 0:00:10.3]} 44. Bg3 {[%clk
0:00:01.9]} 44... Ne5+ {[%clk 0:00:10.4]} 0-1

[Event "Early-Titled-Tuesday-Blitz-August-29-2023"]
[Site "Chess.com"]
[Date "2023.08.29"]
[Round "1"]
[White "kidagent"]
[Black "Arek_pacitan"]
[Result "0-1"]
[WhiteElo "2285"]
[BlackElo "2617"]
[TimeControl "180+1"]
[EndTime "8:08:04 PDT"]
[Termination "Arek_pacitan won by resignation"]

1. e4 {[%clk 0:03:00.9]} 1... c5 {[%clk 0:02:58.9]} 2. Nf3 {[%clk 0:03:00.7]}
2... Nc6 {[%clk 0:02:58.2]} 3. d4 {[%clk 0:03:00.9]} 3... cxd4 {[%clk
0:02:59.1]} 4. Nxd4 {[%clk 0:03:01.5]} 4... Nf6 {[%clk 0:02:59.8]} 5. Nc3 {[%clk
0:03:01.5]} 5... g6 {[%clk 0:03:00.4]} 6. Be3 {[%clk 0:02:59.1]} 6... Bg7 {[%clk
0:02:59.3]} 7. Be2 {[%clk 0:02:59.7]} 7... O-O {[%clk 0:02:58.7]} 8. O-O {[%clk
0:02:59.8]} 8... d6 {[%clk 0:02:59.3]} 9. h3 {[%clk 0:02:57.4]} 9... Bd7 {[%clk
0:02:57.6]} 10. f4 {[%clk 0:02:55]} 10... Nxd4 {[%clk 0:02:57.2]} 11. Bxd4
{[%clk 0:02:54.4]} 11... Bc6 {[%clk 0:02:57.8]} 12. Bf3 {[%clk 0:02:53.1]} 12...
Nd7 {[%clk 0:02:58.5]} 13. Bxg7 {[%clk 0:02:51.6]} 13... Kxg7 {[%clk 0:02:59.4]}
14. Qd2 {[%clk 0:02:41.3]} 14... Qb6+ {[%clk 0:02:51.4]} 15. Kh2 {[%clk
0:02:39.3]} 15... Qxb2 {[%clk 0:02:50.9]} 16. Rab1 {[%clk 0:02:17.2]} 16... Qa3
{[%clk 0:02:50.2]} 17. e5 {[%clk 0:02:15.3]} 17... dxe5 {[%clk 0:02:42.7]} 18.
Bxc6 {[%clk 0:02:13.8]} 18... bxc6 {[%clk 0:02:43.6]} 19. Ne4 {[%clk 0:01:53.9]}
19... Rad8 {[%clk 0:02:38.1]} 20. f5 {[%clk 0:01:52.3]} 20... Nf6 {[%clk
0:02:30.4]} 21. Qe2 {[%clk 0:01:44]} 21... Qxa2 {[%clk 0:02:22.1]} 22. fxg6
{[%clk 0:01:31.9]} 22... hxg6 {[%clk 0:02:23]} 23. Rb7 {[%clk 0:01:24.2]} 23...
Qa3 {[%clk 0:02:04.3]} 24. Ng5 {[%clk 0:01:12.6]} 24... Qc5 {[%clk 0:01:52.5]}
25. Ra1 {[%clk 0:00:57.3]} 25... e4 {[%clk 0:01:47.2]} 26. Nxe4 {[%clk
0:00:49.2]} 26... Qe5+ {[%clk 0:01:47]} 27. Ng3 {[%clk 0:00:47.9]} 27... Qxe2
{[%clk 0:01:47.2]} 28. Nxe2 {[%clk 0:00:47.8]} 28... Rd2 {[%clk 0:01:48.1]} 29.
Rxe7 {[%clk 0:00:45.5]} 29... Nd5 {[%clk 0:01:40]} 30. Re4 {[%clk 0:00:42.9]}
30... Ra8 {[%clk 0:01:31.7]} 31. Nd4 {[%clk 0:00:42.8]} 31... c5 {[%clk
0:01:25.2]} 32. Nb3 {[%clk 0:00:38]} 32... Rxc2 {[%clk 0:01:24.6]} 33. Re5
{[%clk 0:00:38.1]} 33... Nf4 {[%clk 0:01:23.5]} 34. Kg3 {[%clk 0:00:27]} 34...
Nxg2 {[%clk 0:01:16.8]} 35. Rxc5 {[%clk 0:00:24.9]} 35... Rb2 {[%clk 0:01:15.6]}
36. Nd4 {[%clk 0:00:23.7]} 36... Ne3 {[%clk 0:01:13.9]} 37. Rc7 {[%clk
0:00:23.1]} 37... a5 {[%clk 0:01:09.3]} 38. Kf3 {[%clk 0:00:19]} 38... Nd5
{[%clk 0:01:08.3]} 39. Rd7 {[%clk 0:00:18.5]} 39... Nb4 {[%clk 0:01:01.7]} 40.
Ke4 {[%clk 0:00:14.2]} 40... Ra6 {[%clk 0:01:00.7]} 41. Rf1 {[%clk 0:00:13.5]}
41... Rf6 {[%clk 0:01:01.2]} 42. Rxf6 {[%clk 0:00:12.4]} 42... Kxf6 {[%clk
0:01:02.1]} 43. Ra7 {[%clk 0:00:12.2]} 43... Ra2 {[%clk 0:01:02.2]} 44. Nb3
{[%clk 0:00:11.4]} 44... a4 {[%clk 0:01:01.3]} 45. Nc5 {[%clk 0:00:11.5]} 45...
a3 {[%clk 0:01:01.7]} 46. Nd7+ {[%clk 0:00:11.3]} 46... Kg5 {[%clk 0:00:59]} 47.
Ne5 {[%clk 0:00:12.2]} 47... f5+ {[%clk 0:00:59.6]} 48. Kf3 {[%clk 0:00:11.8]}
48... Kf6 {[%clk 0:00:49.5]} 49. Nd7+ {[%clk 0:00:10.6]} 49... Ke6 {[%clk
0:00:46.6]} 50. Nc5+ {[%clk 0:00:11.5]} 50... Kd5 {[%clk 0:00:47.2]} 51. Nb3
{[%clk 0:00:11]} 51... Nc6 {[%clk 0:00:41.3]} 52. Ra6 {[%clk 0:00:10]} 52...
Ne5+ {[%clk 0:00:39]} 53. Kf4 {[%clk 0:00:09.9]} 53... Rf2+ {[%clk 0:00:37.5]}
54. Kg5 {[%clk 0:00:10.3]} 54... Rg2+ {[%clk 0:00:37.7]} 55. Kf6 {[%clk
0:00:10.2]} 55... Nd7+ {[%clk 0:00:34.7]} 56. Ke7 {[%clk 0:00:09.9]} 56... Nc5
{[%clk 0:00:34.5]} 57. Rxa3 {[%clk 0:00:09.4]} 57... Nxb3 {[%clk 0:00:33.7]} 58.
Rxb3 {[%clk 0:00:09.4]} 58... f4 {[%clk 0:00:34.4]} 59. Rb6 {[%clk 0:00:09.2]}
59... Ke4 {[%clk 0:00:34.3]} 60. Rf6 {[%clk 0:00:10.1]} 60... f3 {[%clk
0:00:34.5]} 61. Kf7 {[%clk 0:00:10.7]} 61... f2 {[%clk 0:00:35]} 62. h4 {[%clk
0:00:10]} 62... Ke3 {[%clk 0:00:35.3]} 63. Rxf2 {[%clk 0:00:07.5]} 63... Kxf2
{[%clk 0:00:35.2]} 0-1

[Event "Early-Titled-Tuesday-Blitz-August-29-2023"]
[Site "Chess.com"]
[Date "2023.08.29"]
[Round "1"]
[White "Juicy_Fork"]
[Black "Diaschess88"]
[Result "1-0"]
[WhiteElo "2392"]
[BlackElo "2653"]
[TimeControl "180+1"]
[EndTime "8:08:07 PDT"]
[Termination "Juicy_Fork won by checkmate"]

1. e4 {[%clk 0:02:58.6]} 1... c5 {[%clk 0:02:51.8]} 2. Nf3 {[%clk 0:02:58.6]}
2... d6 {[%clk 0:02:50.8]} 3. d4 {[%clk 0:02:58.7]} 3... cxd4 {[%clk 0:02:51.7]}
4. Nxd4 {[%clk 0:02:59.6]} 4... Nf6 {[%clk 0:02:48.8]} 5. Nc3 {[%clk 0:02:59.6]}
5... Bd7 {[%clk 0:02:49.3]} 6. f3 {[%clk 0:02:45.6]} 6... e5 {[%clk 0:02:39.3]}
7. Nb3 {[%clk 0:02:44]} 7... Be7 {[%clk 0:02:39.1]} 8. Be3 {[%clk 0:02:43.9]}
8... O-O {[%clk 0:02:38.5]} 9. Qd2 {[%clk 0:02:44.3]} 9... a6 {[%clk 0:02:37.2]}
10. g4 {[%clk 0:02:43.2]} 10... b5 {[%clk 0:02:30.5]} 11. g5 {[%clk 0:02:42.9]}
11... Nh5 {[%clk 0:02:29.5]} 12. Nd5 {[%clk 0:02:41.4]} 12... Be6 {[%clk
0:02:24.8]} 13. Bb6 {[%clk 0:02:30.2]} 13... Bxg5 {[%clk 0:02:18.8]} 14. Qg2
{[%clk 0:02:17.7]} 14... Bh4+ {[%clk 0:02:12.5]} 15. Kd1 {[%clk 0:02:14.4]}
15... Qd7 {[%clk 0:02:03]} 16. Nc7 {[%clk 0:02:11.3]} 16... Nf4 {[%clk
0:02:00.6]} 17. Qd2 {[%clk 0:02:10.9]} 17... Nc6 {[%clk 0:01:56.4]} 18. Nxa8
{[%clk 0:02:10.4]} 18... Rxa8 {[%clk 0:01:57.3]} 19. Be3 {[%clk 0:02:09.3]}
19... Bg5 {[%clk 0:01:43.8]} 20. h4 {[%clk 0:02:08.2]} 20... Bh6 {[%clk
0:01:44]} 21. Rg1 {[%clk 0:01:57.8]} 21... Qe7 {[%clk 0:01:40.6]} 22. Qe1 {[%clk
0:01:43.6]} 22... d5 {[%clk 0:01:36.8]} 23. Bxf4 {[%clk 0:01:28.5]} 23... Bxf4
{[%clk 0:01:35.2]} 24. Bd3 {[%clk 0:01:28.6]} 24... dxe4 {[%clk 0:01:31.2]} 25.
Qxe4 {[%clk 0:01:28.4]} 25... Qxh4 {[%clk 0:01:07.7]} 26. Qxc6 {[%clk
0:01:24.6]} 26... Rc8 {[%clk 0:01:08.2]} 27. Qe4 {[%clk 0:01:19.8]} 27... Qh2
{[%clk 0:00:59.7]} 28. Rf1 {[%clk 0:01:11.6]} 28... Bxb3 {[%clk 0:00:34.3]} 29.
Qxh7+ {[%clk 0:00:54.5]} 29... Qxh7 {[%clk 0:00:35.2]} 30. Bxh7+ {[%clk
0:00:55.2]} 30... Kxh7 {[%clk 0:00:36]} 31. axb3 {[%clk 0:00:56.1]} 31... Rd8+
{[%clk 0:00:35.6]} 32. Ke1 {[%clk 0:00:54.3]} 32... Rd6 {[%clk 0:00:31.2]} 33.
Rg1 {[%clk 0:00:47.1]} 33... Rd2 {[%clk 0:00:26.4]} 34. Rh1+ {[%clk 0:00:38]}
34... Kg6 {[%clk 0:00:24.1]} 35. Rxa6+ {[%clk 0:00:37.1]} 35... Kf5 {[%clk
0:00:24.6]} 36. Rh5+ {[%clk 0:00:36.9]} 36... g5 {[%clk 0:00:24.5]} 37. Rhh6
{[%clk 0:00:34]} 37... e4 {[%clk 0:00:06.5]} 38. Rhf6+ {[%clk 0:00:34.1]} 38...
Ke5 {[%clk 0:00:07]} 39. Rxf4 {[%clk 0:00:34.2]} 39... Kxf4 {[%clk 0:00:04.9]}
40. Kxd2 {[%clk 0:00:33.8]} 40... exf3 {[%clk 0:00:05.8]} 41. Rf6+ {[%clk
0:00:32.3]} 41... Kg3 {[%clk 0:00:06.1]} 42. Ke3 {[%clk 0:00:31.3]} 42... g4
{[%clk 0:00:05.8]} 43. Rxf7 {[%clk 0:00:31.8]} 43... b4 {[%clk 0:00:03.1]} 44.
c3 {[%clk 0:00:30.9]} 44... bxc3 {[%clk 0:00:04]} 45. bxc3 {[%clk 0:00:31.8]}
45... Kg2 {[%clk 0:00:04.6]} 46. b4 {[%clk 0:00:29.6]} 46... f2 {[%clk
0:00:05.1]} 47. Rxf2+ {[%clk 0:00:29.3]} 47... Kh1 {[%clk 0:00:05.7]} 48. Kf4
{[%clk 0:00:27.2]} 48... Kg1 {[%clk 0:00:05.9]} 49. Ra2 {[%clk 0:00:26.8]} 49...
g3 {[%clk 0:00:06]} 50. Kxg3 {[%clk 0:00:26.9]} 50... Kf1 {[%clk 0:00:06.9]} 51.
Kf3 {[%clk 0:00:25.2]} 51... Ke1 {[%clk 0:00:07.8]} 52. Ke3 {[%clk 0:00:25.4]}
52... Kd1 {[%clk 0:00:08.3]} 53. Kd3 {[%clk 0:00:25.9]} 53... Kc1 {[%clk
0:00:09.2]} 54. c4 {[%clk 0:00:25.3]} 54... Kb1 {[%clk 0:00:10.1]} 55. Re2
{[%clk 0:00:25.3]} 55... Kc1 {[%clk 0:00:10.5]} 56. Rd2 {[%clk 0:00:24.8]} 56...
Kb1 {[%clk 0:00:10.7]} 57. Kc3 {[%clk 0:00:24]} 57... Kc1 {[%clk 0:00:11.6]} 58.
Rd3 {[%clk 0:00:23.6]} 58... Kb1 {[%clk 0:00:12.5]} 59. Kb3 {[%clk 0:00:22.1]}
59... Kc1 {[%clk 0:00:12.3]} 60. Rd4 {[%clk 0:00:22.7]} 60... Kb1 {[%clk
0:00:12.3]} 61. Rd1# {[%clk 0:00:23.3]} 1-0

[Event "Early-Titled-Tuesday-Blitz-August-29-2023"]
[Site "Chess.com"]
[Date "2023.08.29"]
[Round "1"]
[White "Aleksandar-Topalov"]
[Black "Alexei_Gubajdullin"]
[Result "1/2-1/2"]
[WhiteElo "2326"]
[BlackElo "2630"]
[TimeControl "180+1"]
[EndTime "8:08:07 PDT"]
[Termination "Game drawn by agreement"]

1. b3 {[%clk 0:03:00.9]} 1... Nf6 {[%clk 0:02:59.4]} 2. Bb2 {[%clk 0:02:59.3]}
2... g6 {[%clk 0:02:59.2]} 3. Bxf6 {[%clk 0:02:59]} 3... exf6 {[%clk 0:02:59.3]}
4. c4 {[%clk 0:02:59.3]} 4... d5 {[%clk 0:02:59.5]} 5. cxd5 {[%clk 0:02:59]}
5... Qxd5 {[%clk 0:02:59.5]} 6. e3 {[%clk 0:02:59]} 6... Qa5 {[%clk 0:02:52.1]}
7. Nf3 {[%clk 0:02:52.8]} 7... c6 {[%clk 0:02:48.3]} 8. a3 {[%clk 0:02:52.6]}
8... Bd6 {[%clk 0:02:43.9]} 9. Nc3 {[%clk 0:02:52.3]} 9... O-O {[%clk
0:02:42.2]} 10. b4 {[%clk 0:02:51.4]} 10... Qd8 {[%clk 0:02:41.9]} 11. d4 {[%clk
0:02:51.1]} 11... Nd7 {[%clk 0:02:34.4]} 12. Be2 {[%clk 0:02:49]} 12... f5
{[%clk 0:02:34.4]} 13. O-O {[%clk 0:02:47.1]} 13... a5 {[%clk 0:02:34.3]} 14.
Rb1 {[%clk 0:02:46.2]} 14... axb4 {[%clk 0:02:33.9]} 15. axb4 {[%clk 0:02:47.1]}
15... Nf6 {[%clk 0:02:31.1]} 16. g3 {[%clk 0:02:39.8]} 16... b5 {[%clk
0:02:26.9]} 17. d5 {[%clk 0:02:31.3]} 17... cxd5 {[%clk 0:02:08.9]} 18. Nxb5
{[%clk 0:02:28.9]} 18... Be7 {[%clk 0:02:04.1]} 19. Nfd4 {[%clk 0:02:23.1]}
19... Bb7 {[%clk 0:02:00.5]} 20. Nc3 {[%clk 0:02:13.6]} 20... Ne4 {[%clk
0:01:59.4]} 21. Nxe4 {[%clk 0:02:11.8]} 21... dxe4 {[%clk 0:01:56.9]} 22. b5
{[%clk 0:02:11.1]} 22... Qb6 {[%clk 0:01:55]} 23. Qb3 {[%clk 0:02:00.1]} 23...
Bf6 {[%clk 0:01:50.3]} 24. Rfd1 {[%clk 0:01:59.6]} 24... Rad8 {[%clk 0:01:46.3]}
25. Nc6 {[%clk 0:01:54.4]} 25... Bxc6 {[%clk 0:01:42.8]} 26. bxc6 {[%clk
0:01:53.4]} 26... Qxc6 {[%clk 0:01:42.9]} 27. Rxd8 {[%clk 0:01:50.7]} 27... Rxd8
{[%clk 0:01:41.7]} 28. Bc4 {[%clk 0:01:46.7]} 28... Qd7 {[%clk 0:01:31.1]} 29.
Qb7 {[%clk 0:01:36.1]} 29... h5 {[%clk 0:01:28.8]} 30. h4 {[%clk 0:01:33]} 30...
Kg7 {[%clk 0:01:28.2]} 31. Qxd7 {[%clk 0:01:32.1]} 31... Rxd7 {[%clk 0:01:28.1]}
32. Kg2 {[%clk 0:01:21.8]} 32... Rc7 {[%clk 0:01:26.6]} 33. Bd5 {[%clk
0:01:18.6]} 33... Rc5 {[%clk 0:01:23.8]} 34. Ba2 {[%clk 0:01:13.3]} 34... Ra5
{[%clk 0:01:21.9]} 35. Bc4 {[%clk 0:01:11.9]} 35... Ra7 {[%clk 0:01:14.2]} 36.
Bd5 {[%clk 0:01:08.2]} 36... Rd7 {[%clk 0:01:13.8]} 37. Ba2 {[%clk 0:01:05.3]}
37... Be7 {[%clk 0:01:11.4]} 38. Bc4 {[%clk 0:00:59.6]} 38... Bc5 {[%clk
0:01:10.2]} 39. Rb5 {[%clk 0:00:58.2]} 39... Ba7 {[%clk 0:01:09.9]} 40. Bd5
{[%clk 0:00:56.8]} 40... Kf6 {[%clk 0:01:07]} 41. Bc6 {[%clk 0:00:55.3]} 41...
Rc7 {[%clk 0:01:05.3]} 42. Bd5 {[%clk 0:00:49.3]} 42... Rd7 {[%clk 0:01:00.7]}
43. Bc6 {[%clk 0:00:47.9]} 43... Rd6 {[%clk 0:00:55.9]} 44. Bd5 {[%clk
0:00:44.5]} 44... Bb6 {[%clk 0:00:55.5]} 45. Kf1 {[%clk 0:00:43.3]} 45... Ke7
{[%clk 0:00:54.3]} 46. Bb3 {[%clk 0:00:40.2]} 46... f6 {[%clk 0:00:50.4]} 47.
Rd5 {[%clk 0:00:38.8]} 47... Rc6 {[%clk 0:00:49.7]} 48. Ba4 {[%clk 0:00:38.5]}
48... Rc7 {[%clk 0:00:48.6]} 49. Rb5 {[%clk 0:00:36.1]} 49... Bc5 {[%clk
0:00:47.4]} 50. Rb8 {[%clk 0:00:32.1]} 50... Ra7 {[%clk 0:00:39.4]} 51. Be8
{[%clk 0:00:30.4]} 51... g5 {[%clk 0:00:36.8]} 52. Bxh5 {[%clk 0:00:28.8]} 52...
f4 {[%clk 0:00:36.6]} 53. gxf4 {[%clk 0:00:28.3]} 53... gxh4 {[%clk 0:00:36]}
54. Bg6 {[%clk 0:00:22.1]} 54... Ra1+ {[%clk 0:00:31.5]} 55. Kg2 {[%clk
0:00:21.7]} 55... Ra2 {[%clk 0:00:31.7]} 56. Rb3 {[%clk 0:00:13.1]} 56... h3+
{[%clk 0:00:18.6]} 57. Kxh3 {[%clk 0:00:13.4]} 57... Rxf2 {[%clk 0:00:18.6]} 58.
Bxe4 {[%clk 0:00:13.2]} 58... Re2 {[%clk 0:00:18.7]} 59. Kg4 {[%clk 0:00:11.7]}
59... Rxe3 {[%clk 0:00:14.8]} 60. Rxe3 {[%clk 0:00:11.6]} 60... Bxe3 {[%clk
0:00:15]} 1/2-1/2